[Event "Titled Tuesday Blitz June 20 Late 2023"]
[White "Terry, Renato"]
[Black "Tsaruk, Maksim"]
[WhiteFideId "3803457"]
[BlackFideId "13511173"]
[WhiteElo "2575"]
[BlackElo "2363"]
[Result "1-0"]
[Round "9"]
[TimeControl "180+2"]
[Date "2023.06.20"]
[WhiteClock "0:00:18"]
[BlackClock "0:00:00"]
[Board "3"]

1. d4 {[%clk 0:03:00]}  d5 {[%clk 0:02:58]} 2. Bg5 {[%clk 0:02:59]}  h6 {[%clk 0:02:52]} 3. Bh4 {[%clk 0:02:59]}  Nf6 {[%clk 0:02:51]} 4. e3 {[%clk 0:02:59]}  Bf5 {[%clk 0:02:44]} 5. Bd3 {[%clk 0:02:58]}  Bxd3 {[%clk 0:02:43]} 6. Qxd3 {[%clk 0:02:59]}  Nbd7 {[%clk 0:02:42]} 7. Nf3 {[%clk 0:02:55]}  e6 {[%clk 0:02:40]} 8. O-O {[%clk 0:02:54]}  c5 {[%clk 0:02:40]} 9. c4 {[%clk 0:02:50]}  dxc4 {[%clk 0:02:37]} 10. Qxc4 {[%clk 0:02:51]}  Rc8 {[%clk 0:02:37]} 11. Qb3 {[%clk 0:02:45]}  Qb6 {[%clk 0:02:36]} 12. Bxf6 {[%clk 0:02:33]}  gxf6 {[%clk 0:02:23]} 13. Qa4 {[%clk 0:02:08]}  cxd4 {[%clk 0:02:09]} 14. exd4 {[%clk 0:02:06]}  Qxb2 {[%clk 0:02:06]} 15. Nbd2 {[%clk 0:02:06]}  Qa3 {[%clk 0:02:07]} 16. Qb5 {[%clk 0:02:06]}  Qa6 {[%clk 0:01:58]} 17. Qh5 {[%clk 0:02:05]}  f5 {[%clk 0:01:49]} 18. Rfe1 {[%clk 0:01:57]}  Bg7 {[%clk 0:01:28]} 19. Qxf5 {[%clk 0:01:28]}  O-O {[%clk 0:01:28]} 20. Qg4 {[%clk 0:01:26]}  Kh8 {[%clk 0:01:21]} 21. Nf1 {[%clk 0:01:23]}  Nf6 {[%clk 0:01:10]} 22. Qh4 {[%clk 0:01:19]}  Rc2 {[%clk 0:01:03]} 23. a4 {[%clk 0:01:18]}  Qd3 {[%clk 0:00:36]} 24. Ne3 {[%clk 0:01:12]}  Rb2 {[%clk 0:00:22]} 25. Ne5 {[%clk 0:00:59]}  Qe4 {[%clk 0:00:21]} 26. Qxe4 {[%clk 0:00:59]}  Nxe4 {[%clk 0:00:21]} 27. N3c4 {[%clk 0:00:57]}  Bxe5 {[%clk 0:00:11]} 28. dxe5 {[%clk 0:00:38]}  Rc2 {[%clk 0:00:07]} 29. Rxe4 {[%clk 0:00:37]}  Rc8 {[%clk 0:00:07]} 30. Ne3 {[%clk 0:00:37]}  Rc1+ {[%clk 0:00:07]} 31. Rxc1 {[%clk 0:00:36]}  Rxc1+ {[%clk 0:00:07]} 32. Nf1 {[%clk 0:00:37]}  Rb1 {[%clk 0:00:02]} 33. g3 {[%clk 0:00:37]}  a6 {[%clk 0:00:02]} 34. Kg2 {[%clk 0:00:37]}  b5 {[%clk 0:00:02]} 35. axb5 {[%clk 0:00:38]}  axb5 {[%clk 0:00:03]} 36. Nd2 {[%clk 0:00:38]}  Rd1 {[%clk 0:00:03]} 37. Nf3 {[%clk 0:00:38]}  Rb1 {[%clk 0:00:03]} 38. Rd4 {[%clk 0:00:36]}  b4 {[%clk 0:00:03]} 39. Rd7 {[%clk 0:00:36]}  Kg7 {[%clk 0:00:03]} 40. Rb7 {[%clk 0:00:36]}  b3 {[%clk 0:00:03]} 41. Nd2 {[%clk 0:00:36]}  Re1 {[%clk 0:00:04]} 42. Rxb3 {[%clk 0:00:33]}  Rxe5 {[%clk 0:00:04]} 43. Nf3 {[%clk 0:00:34]}  Ra5 {[%clk 0:00:04]} 44. Rb7 {[%clk 0:00:34]}  Rc5 {[%clk 0:00:04]} 45. Nd4 {[%clk 0:00:34]}  Kf6 {[%clk 0:00:03]} 46. Rb3 {[%clk 0:00:34]}  Ra5 {[%clk 0:00:03]} 47. Rf3+ {[%clk 0:00:35]}  Kg7 {[%clk 0:00:03]} 48. Nc6 {[%clk 0:00:33]}  Rd5 {[%clk 0:00:01]} 49. Rf4 {[%clk 0:00:33]}  Rc5 {[%clk 0:00:01]} 50. Nb4 {[%clk 0:00:26]}  Kg6 {[%clk 0:00:01]} 51. Nd3 {[%clk 0:00:26]}  Ra5 {[%clk 0:00:02]} 52. h4 {[%clk 0:00:26]}  Kg7 {[%clk 0:00:02]} 53. Rg4+ {[%clk 0:00:26]}  Kf6 {[%clk 0:00:03]} 54. Rf4+ {[%clk 0:00:26]}  Kg7 {[%clk 0:00:03]} 55. Kf3 {[%clk 0:00:26]}  h5 {[%clk 0:00:04]} 56. Ke3 {[%clk 0:00:26]}  Rb5 {[%clk 0:00:05]} 57. Re4 {[%clk 0:00:26]}  Ra5 {[%clk 0:00:05]} 58. Re5 {[%clk 0:00:27]}  Ra4 {[%clk 0:00:04]} 59. Rxh5 {[%clk 0:00:26]}  f5 {[%clk 0:00:05]} 60. Rg5+ {[%clk 0:00:26]}  Kf7 {[%clk 0:00:05]} 61. h5 {[%clk 0:00:24]}  Ra8 {[%clk 0:00:03]} 62. Ne5+ {[%clk 0:00:18]}  Kf6 {[%clk 0:00:04]} 63. f4 {[%clk 0:00:19]}  Ra3+ {[%clk 0:00:03]} 64. Kd2 {[%clk 0:00:19]}  Ra2+ {[%clk 0:00:03]} 65. Kc3 {[%clk 0:00:20]}  Rh2 {[%clk 0:00:02]} 66. Rg6+ {[%clk 0:00:19]}  Ke7 {[%clk 0:00:02]} 67. h6 {[%clk 0:00:20]}  Rh3 {[%clk 0:00:02]} 68. Rg7+ {[%clk 0:00:18]}  Kf8 {[%clk 0:00:01]} 69. Ng6+ {[%clk 0:00:18]}  Ke8 {[%clk 0:00:00]} 70. h7 {[%clk 0:00:18]} 1-0


[Site "https://www.chess.com"]

[Event "Titled Tuesday Blitz June 20 Late 2023"]
[White "Xiong, Jeffery"]
[Black "Firouzja, Alireza"]
[WhiteFideId "2047640"]
[BlackFideId "12573981"]
[WhiteElo "2726"]
[BlackElo "2896"]
[Result "0-1"]
[Round "9"]
[TimeControl "180+2"]
[Date "2023.06.20"]
[WhiteClock "0:00:04"]
[BlackClock "0:00:07"]
[Board "4"]

1. e4 {[%clk 0:03:00]}  c5 {[%clk 0:02:57]} 2. Nf3 {[%clk 0:03:01]}  Nc6 {[%clk 0:02:57]} 3. Nc3 {[%clk 0:03:00]}  g6 {[%clk 0:02:56]} 4. d4 {[%clk 0:03:00]}  cxd4 {[%clk 0:02:57]} 5. Nxd4 {[%clk 0:03:01]}  Bg7 {[%clk 0:02:57]} 6. Be3 {[%clk 0:03:01]}  Nf6 {[%clk 0:02:57]} 7. Bc4 {[%clk 0:03:02]}  O-O {[%clk 0:02:57]} 8. Bb3 {[%clk 0:03:02]}  Re8 {[%clk 0:02:52]} 9. O-O {[%clk 0:02:54]}  d6 {[%clk 0:02:50]} 10. h3 {[%clk 0:02:54]}  Bd7 {[%clk 0:02:49]} 11. Re1 {[%clk 0:02:51]}  a6 {[%clk 0:02:42]} 12. a4 {[%clk 0:02:40]}  Rc8 {[%clk 0:02:41]} 13. Nxc6 {[%clk 0:02:38]}  Bxc6 {[%clk 0:02:41]} 14. Bd4 {[%clk 0:02:36]}  e5 {[%clk 0:02:16]} 15. Be3 {[%clk 0:02:28]}  Nxe4 {[%clk 0:02:11]} 16. Nxe4 {[%clk 0:02:28]}  Bxe4 {[%clk 0:02:12]} 17. Bg5 {[%clk 0:02:20]}  Qxg5 {[%clk 0:01:54]} 18. Rxe4 {[%clk 0:02:20]}  Qe7 {[%clk 0:01:55]} 19. Bd5 {[%clk 0:02:11]}  Kh8 {[%clk 0:01:50]} 20. Rb4 {[%clk 0:02:10]}  Rc7 {[%clk 0:01:51]} 21. a5 {[%clk 0:02:10]}  f5 {[%clk 0:01:50]} 22. c3 {[%clk 0:02:09]}  e4 {[%clk 0:01:49]} 23. Qd2 {[%clk 0:01:49]}  h5 {[%clk 0:01:44]} 24. Rd1 {[%clk 0:01:48]}  Kh7 {[%clk 0:01:42]} 25. Qe3 {[%clk 0:01:42]}  Bh6 {[%clk 0:01:40]} 26. Qe2 {[%clk 0:01:25]}  e3 {[%clk 0:01:33]} 27. fxe3 {[%clk 0:01:25]}  Bxe3+ {[%clk 0:01:29]} 28. Kh1 {[%clk 0:01:25]}  Bc5 {[%clk 0:00:58]} 29. Qxe7+ {[%clk 0:01:25]}  Rexe7 {[%clk 0:00:59]} 30. Rc4 {[%clk 0:01:24]}  Kg7 {[%clk 0:00:47]} 31. Bf3 {[%clk 0:01:22]}  Rcd7 {[%clk 0:00:41]} 32. g4 {[%clk 0:01:21]}  Re3 {[%clk 0:00:36]} 33. Kg2 {[%clk 0:01:21]}  fxg4 {[%clk 0:00:34]} 34. hxg4 {[%clk 0:01:21]}  Rf7 {[%clk 0:00:32]} 35. Rf1 {[%clk 0:01:18]}  h4 {[%clk 0:00:32]} 36. b4 {[%clk 0:01:02]}  Ba7 {[%clk 0:00:31]} 37. g5 {[%clk 0:00:46]}  h3+ {[%clk 0:00:31]} 38. Kg3 {[%clk 0:00:46]}  d5 {[%clk 0:00:26]} 39. Rc8 {[%clk 0:00:37]}  h2 {[%clk 0:00:25]} 40. Kxh2 {[%clk 0:00:36]}  Rexf3 {[%clk 0:00:25]} 41. Rxf3 {[%clk 0:00:37]}  Rxf3 {[%clk 0:00:25]} 42. Kg2 {[%clk 0:00:38]}  Rf7 {[%clk 0:00:23]} 43. Rd8 {[%clk 0:00:37]}  Be3 {[%clk 0:00:19]} 44. Rxd5 {[%clk 0:00:37]}  Rc7 {[%clk 0:00:17]} 45. Kf3 {[%clk 0:00:38]}  Bc1 {[%clk 0:00:17]} 46. Ke4 {[%clk 0:00:36]}  Kf7 {[%clk 0:00:17]} 47. Rd6 {[%clk 0:00:19]}  Bxg5 {[%clk 0:00:16]} 48. Kd3 {[%clk 0:00:19]}  Be7 {[%clk 0:00:15]} 49. Rb6 {[%clk 0:00:19]}  g5 {[%clk 0:00:15]} 50. c4 {[%clk 0:00:20]}  g4 {[%clk 0:00:14]} 51. c5 {[%clk 0:00:20]}  Rd7+ {[%clk 0:00:08]} 52. Ke4 {[%clk 0:00:20]}  Bd8 {[%clk 0:00:09]} 53. Rh6 {[%clk 0:00:19]}  Bf6 {[%clk 0:00:07]} 54. Kf5 {[%clk 0:00:17]}  Rd5+ {[%clk 0:00:07]} 55. Kxg4 {[%clk 0:00:17]}  Ke6 {[%clk 0:00:07]} 56. Kf3 {[%clk 0:00:04]}  Rd4 {[%clk 0:00:07]} 0-1


[Site "https://www.chess.com"]

[Event "Titled Tuesday Blitz June 20 Late 2023"]
[White "Anton Guijarro, David"]
[Black "Kollars, Dmitrij"]
[WhiteFideId "2285525"]
[BlackFideId "12909572"]
[WhiteElo "2618"]
[BlackElo "2584"]
[Result "0-1"]
[Round "9"]
[TimeControl "180+2"]
[Date "2023.06.20"]
[WhiteClock "0:00:00"]
[BlackClock "0:00:14"]
[Board "5"]

1. Nf3 {[%clk 0:03:00]}  Nf6 {[%clk 0:02:59]} 2. b3 {[%clk 0:03:01]}  d5 {[%clk 0:02:57]} 3. Bb2 {[%clk 0:03:00]}  Bg4 {[%clk 0:02:55]} 4. h3 {[%clk 0:02:59]}  Bxf3 {[%clk 0:02:55]} 5. exf3 {[%clk 0:03:00]}  g6 {[%clk 0:02:53]} 6. f4 {[%clk 0:02:59]}  Bg7 {[%clk 0:02:50]} 7. g3 {[%clk 0:02:59]}  e6 {[%clk 0:02:48]} 8. Bg2 {[%clk 0:02:59]}  O-O {[%clk 0:02:48]} 9. O-O {[%clk 0:02:59]}  c5 {[%clk 0:02:49]} 10. c4 {[%clk 0:02:58]}  Nc6 {[%clk 0:02:47]} 11. d3 {[%clk 0:02:55]}  Qd7 {[%clk 0:02:32]} 12. Nd2 {[%clk 0:02:49]}  Ne8 {[%clk 0:02:26]} 13. Bxg7 {[%clk 0:02:07]}  Nxg7 {[%clk 0:02:27]} 14. cxd5 {[%clk 0:02:02]}  exd5 {[%clk 0:02:27]} 15. Nf3 {[%clk 0:02:01]}  Rfe8 {[%clk 0:02:20]} 16. d4 {[%clk 0:02:00]}  cxd4 {[%clk 0:02:03]} 17. Nxd4 {[%clk 0:02:01]}  Rad8 {[%clk 0:02:03]} 18. Rc1 {[%clk 0:01:51]}  Nf5 {[%clk 0:01:45]} 19. Nf3 {[%clk 0:01:44]}  d4 {[%clk 0:01:07]} 20. Qd3 {[%clk 0:01:44]}  Nb4 {[%clk 0:01:02]} 21. Qd2 {[%clk 0:01:44]}  Nd5 {[%clk 0:00:50]} 22. g4 {[%clk 0:01:32]}  Ng7 {[%clk 0:00:44]} 23. Rc4 {[%clk 0:00:31]}  Ne6 {[%clk 0:00:32]} 24. f5 {[%clk 0:00:23]}  Nef4 {[%clk 0:00:33]} 25. Rd1 {[%clk 0:00:13]}  Nc3 {[%clk 0:00:25]} 26. Ra1 {[%clk 0:00:11]}  b5 {[%clk 0:00:22]} 27. Rc5 {[%clk 0:00:08]}  Qd6 {[%clk 0:00:21]} 28. b4 {[%clk 0:00:09]}  Ne4 {[%clk 0:00:22]} 29. Qc2 {[%clk 0:00:03]}  d3 {[%clk 0:00:20]} 30. Qb3 {[%clk 0:00:03]}  Nxc5 {[%clk 0:00:19]} 31. bxc5 {[%clk 0:00:04]}  Qxc5 {[%clk 0:00:20]} 32. fxg6 {[%clk 0:00:04]}  hxg6 {[%clk 0:00:21]} 33. Rf1 {[%clk 0:00:03]}  d2 {[%clk 0:00:20]} 34. Rd1 {[%clk 0:00:03]}  Ne2+ {[%clk 0:00:15]} 35. Kh1 {[%clk 0:00:00]}  Qxf2 {[%clk 0:00:14]} 0-1


[Site "https://www.chess.com"]

[Event "Titled Tuesday Blitz June 20 Late 2023"]
[White "Le, Tuan Minh"]
[Black "Rustemov, Alexander"]
[WhiteFideId "12401153"]
[BlackFideId "4119002"]
[WhiteElo "2566"]
[BlackElo "2881"]
[Result "0-1"]
[Round "9"]
[TimeControl "180+2"]
[Date "2023.06.20"]
[WhiteClock "0:00:03"]
[BlackClock "0:00:07"]
[Board "6"]

1. d4 {[%clk 0:02:59]}  d5 {[%clk 0:02:59]} 2. Nf3 {[%clk 0:02:59]}  Nf6 {[%clk 0:02:59]} 3. Bg5 {[%clk 0:02:59]}  Ne4 {[%clk 0:02:58]} 4. Bf4 {[%clk 0:02:57]}  c5 {[%clk 0:02:58]} 5. c3 {[%clk 0:02:56]}  Bf5 {[%clk 0:02:52]} 6. Qb3 {[%clk 0:02:51]}  Qb6 {[%clk 0:02:14]} 7. Qxd5 {[%clk 0:02:25]}  e6 {[%clk 0:02:14]} 8. Qb3 {[%clk 0:02:25]}  cxd4 {[%clk 0:02:09]} 9. Nxd4 {[%clk 0:02:21]}  Nd7 {[%clk 0:01:56]} 10. e3 {[%clk 0:02:13]}  Bg6 {[%clk 0:01:48]} 11. Qxb6 {[%clk 0:01:59]}  axb6 {[%clk 0:01:35]} 12. Bb5 {[%clk 0:01:59]}  Nc5 {[%clk 0:01:18]} 13. Nd2 {[%clk 0:01:21]}  Nd3+ {[%clk 0:01:14]} 14. Bxd3 {[%clk 0:01:21]}  Bxd3 {[%clk 0:01:15]} 15. N4b3 {[%clk 0:01:13]}  e5 {[%clk 0:01:11]} 16. Bg3 {[%clk 0:01:13]}  f6 {[%clk 0:01:10]} 17. f3 {[%clk 0:01:12]}  Be7 {[%clk 0:01:03]} 18. e4 {[%clk 0:01:10]}  Kf7 {[%clk 0:01:01]} 19. Bf2 {[%clk 0:01:09]}  Rhd8 {[%clk 0:00:58]} 20. Be3 {[%clk 0:01:09]}  Nc5 {[%clk 0:00:55]} 21. Nxc5 {[%clk 0:01:00]}  bxc5 {[%clk 0:00:54]} 22. Kf2 {[%clk 0:01:00]}  b5 {[%clk 0:00:46]} 23. a3 {[%clk 0:00:58]}  c4 {[%clk 0:00:44]} 24. h4 {[%clk 0:00:51]}  h5 {[%clk 0:00:43]} 25. g3 {[%clk 0:00:49]}  Rd7 {[%clk 0:00:43]} 26. Rac1 {[%clk 0:00:41]}  Rad8 {[%clk 0:00:43]} 27. Rhe1 {[%clk 0:00:40]}  g6 {[%clk 0:00:42]} 28. Nf1 {[%clk 0:00:38]}  Ke6 {[%clk 0:00:41]} 29. Rcd1 {[%clk 0:00:31]}  f5 {[%clk 0:00:40]} 30. exf5+ {[%clk 0:00:32]}  gxf5 {[%clk 0:00:39]} 31. f4 {[%clk 0:00:20]}  e4 {[%clk 0:00:37]} 32. Bb6 {[%clk 0:00:20]}  Rb8 {[%clk 0:00:34]} 33. Bd4 {[%clk 0:00:20]}  Rxd4 {[%clk 0:00:31]} 34. cxd4 {[%clk 0:00:21]}  Bf6 {[%clk 0:00:31]} 35. Ne3 {[%clk 0:00:17]}  Bxd4 {[%clk 0:00:31]} 36. Rd2 {[%clk 0:00:17]}  b4 {[%clk 0:00:26]} 37. axb4 {[%clk 0:00:15]}  Rxb4 {[%clk 0:00:27]} 38. Ra1 {[%clk 0:00:13]}  Rb3 {[%clk 0:00:22]} 39. Ra6+ {[%clk 0:00:07]}  Kd7 {[%clk 0:00:21]} 40. Ra3 {[%clk 0:00:07]}  Rxa3 {[%clk 0:00:13]} 41. bxa3 {[%clk 0:00:08]}  Kc6 {[%clk 0:00:12]} 42. Rd1 {[%clk 0:00:05]}  c3 {[%clk 0:00:12]} 43. Rc1 {[%clk 0:00:03]}  Kb5 {[%clk 0:00:12]} 44. Rd1 {[%clk 0:00:01]}  Ka4 {[%clk 0:00:12]} 45. g4 {[%clk 0:00:01]}  fxg4 {[%clk 0:00:11]} 46. Re1 {[%clk 0:00:02]}  Kxa3 {[%clk 0:00:10]} 47. f5 {[%clk 0:00:02]}  c2 {[%clk 0:00:10]} 48. f6 {[%clk 0:00:01]}  Bxf6 {[%clk 0:00:10]} 49. Nxc2+ {[%clk 0:00:02]}  Bxc2 {[%clk 0:00:09]} 50. Ke3 {[%clk 0:00:02]}  Bd3 {[%clk 0:00:06]} 51. Kf4 {[%clk 0:00:02]}  Bxh4 {[%clk 0:00:05]} 52. Rh1 {[%clk 0:00:03]}  Bf2 {[%clk 0:00:05]} 53. Rxh5 {[%clk 0:00:03]}  g3 {[%clk 0:00:06]} 54. Ra5+ {[%clk 0:00:03]}  Kb4 {[%clk 0:00:06]} 55. Rg5 {[%clk 0:00:04]}  Kc3 {[%clk 0:00:06]} 56. Rg8 {[%clk 0:00:03]}  Kd2 {[%clk 0:00:07]} 0-1


[Site "https://www.chess.com"]

[Event "Titled Tuesday Blitz June 20 Late 2023"]
[White "Hakobyan, Aram"]
[Black "Grigoriants, Sergey"]
[WhiteFideId "13306677"]
[BlackFideId "4130804"]
[WhiteElo "2584"]
[BlackElo "2502"]
[Result "1-0"]
[Round "9"]
[TimeControl "180+2"]
[Date "2023.06.20"]
[WhiteClock "0:00:05"]
[BlackClock "0:00:00"]
[Board "7"]

1. d4 {[%clk 0:02:59]}  Nf6 {[%clk 0:02:58]} 2. c4 {[%clk 0:02:59]}  e6 {[%clk 0:02:54]} 3. Nc3 {[%clk 0:03:00]}  Bb4 {[%clk 0:02:53]} 4. e3 {[%clk 0:03:00]}  O-O {[%clk 0:02:53]} 5. a3 {[%clk 0:03:01]}  Bxc3+ {[%clk 0:02:51]} 6. bxc3 {[%clk 0:03:02]}  c5 {[%clk 0:02:49]} 7. Ne2 {[%clk 0:03:01]}  Nc6 {[%clk 0:02:41]} 8. Ng3 {[%clk 0:03:01]}  b6 {[%clk 0:02:32]} 9. e4 {[%clk 0:02:58]}  Ne8 {[%clk 0:02:31]} 10. d5 {[%clk 0:02:55]}  Na5 {[%clk 0:02:31]} 11. Bd3 {[%clk 0:02:55]}  Ba6 {[%clk 0:02:26]} 12. Qe2 {[%clk 0:02:55]}  d6 {[%clk 0:01:40]} 13. O-O {[%clk 0:02:47]}  Nb3 {[%clk 0:01:30]} 14. Rb1 {[%clk 0:02:48]}  Nxc1 {[%clk 0:01:30]} 15. Rbxc1 {[%clk 0:02:49]}  e5 {[%clk 0:01:29]} 16. f4 {[%clk 0:02:46]}  Bc8 {[%clk 0:01:20]} 17. f5 {[%clk 0:02:43]}  Qg5 {[%clk 0:01:12]} 18. Rce1 {[%clk 0:02:40]}  Nf6 {[%clk 0:01:13]} 19. Qf3 {[%clk 0:02:34]}  Bd7 {[%clk 0:01:12]} 20. Ne2 {[%clk 0:02:14]}  a6 {[%clk 0:01:11]} 21. Qg3 {[%clk 0:01:55]}  Qxg3 {[%clk 0:01:03]} 22. Nxg3 {[%clk 0:01:56]}  b5 {[%clk 0:01:04]} 23. Rb1 {[%clk 0:01:57]}  bxc4 {[%clk 0:00:55]} 24. Bxc4 {[%clk 0:01:56]}  Bb5 {[%clk 0:00:56]} 25. Bxb5 {[%clk 0:01:50]}  axb5 {[%clk 0:00:57]} 26. Rxb5 {[%clk 0:01:48]}  Rxa3 {[%clk 0:00:57]} 27. Rc1 {[%clk 0:01:46]}  h5 {[%clk 0:00:56]} 28. h4 {[%clk 0:01:40]}  Rfa8 {[%clk 0:00:52]} 29. Rb6 {[%clk 0:01:28]}  R8a6 {[%clk 0:00:37]} 30. Rb8+ {[%clk 0:01:12]}  Kh7 {[%clk 0:00:36]} 31. Rb7 {[%clk 0:01:13]}  Ra7 {[%clk 0:00:35]} 32. Rxa7 {[%clk 0:01:03]}  Rxa7 {[%clk 0:00:35]} 33. Kf2 {[%clk 0:01:01]}  Ra3 {[%clk 0:00:28]} 34. Kf3 {[%clk 0:00:53]}  c4 {[%clk 0:00:25]} 35. Nf1 {[%clk 0:00:49]}  Ng4 {[%clk 0:00:12]} 36. Nd2 {[%clk 0:00:50]}  Ra4 {[%clk 0:00:08]} 37. Rc2 {[%clk 0:00:50]}  g6 {[%clk 0:00:08]} 38. fxg6+ {[%clk 0:00:49]}  Kxg6 {[%clk 0:00:08]} 39. Rb2 {[%clk 0:00:50]}  Ra3 {[%clk 0:00:07]} 40. Rc2 {[%clk 0:00:49]}  Ra4 {[%clk 0:00:07]} 41. g3 {[%clk 0:00:41]}  f6 {[%clk 0:00:07]} 42. Ke2 {[%clk 0:00:36]}  f5 {[%clk 0:00:07]} 43. Kf3 {[%clk 0:00:35]}  Nf6 {[%clk 0:00:07]} 44. Rc1 {[%clk 0:00:28]}  Ra2 {[%clk 0:00:06]} 45. exf5+ {[%clk 0:00:29]}  Kxf5 {[%clk 0:00:06]} 46. Nxc4 {[%clk 0:00:29]}  Nxd5 {[%clk 0:00:02]} 47. Nxd6+ {[%clk 0:00:29]}  Ke6 {[%clk 0:00:02]} 48. Ne4 {[%clk 0:00:30]}  Ra3 {[%clk 0:00:02]} 49. g4 {[%clk 0:00:27]}  hxg4+ {[%clk 0:00:02]} 50. Kxg4 {[%clk 0:00:28]}  Ra4 {[%clk 0:00:01]} 51. c4 {[%clk 0:00:27]}  Rxc4 {[%clk 0:00:01]} 52. Rxc4 {[%clk 0:00:20]}  Ne3+ {[%clk 0:00:01]} 53. Kg5 {[%clk 0:00:21]}  Nxc4 {[%clk 0:00:02]} 54. Kg6 {[%clk 0:00:22]}  Ne3 {[%clk 0:00:02]} 55. h5 {[%clk 0:00:22]}  Ng4 {[%clk 0:00:02]} 56. Ng3 {[%clk 0:00:18]}  e4 {[%clk 0:00:02]} 57. Nxe4 {[%clk 0:00:18]}  Ne5+ {[%clk 0:00:03]} 58. Kg7 {[%clk 0:00:18]}  Ng4 {[%clk 0:00:03]} 59. Ng3 {[%clk 0:00:17]}  Ke5 {[%clk 0:00:03]} 60. Kg6 {[%clk 0:00:16]}  Kf4 {[%clk 0:00:03]} 61. Ne2+ {[%clk 0:00:15]}  Ke3 {[%clk 0:00:04]} 62. Nc3 {[%clk 0:00:15]}  Kf4 {[%clk 0:00:04]} 63. Nd5+ {[%clk 0:00:15]}  Ke5 {[%clk 0:00:04]} 64. Ne3 {[%clk 0:00:12]}  Nf6 {[%clk 0:00:03]} 65. h6 {[%clk 0:00:13]}  Ke6 {[%clk 0:00:04]} 66. Kg7 {[%clk 0:00:11]}  Nh5+ {[%clk 0:00:03]} 67. Kg6 {[%clk 0:00:10]}  Nf4+ {[%clk 0:00:04]} 68. Kg5 {[%clk 0:00:09]}  Nh3+ {[%clk 0:00:04]} 69. Kg6 {[%clk 0:00:07]}  Nf4+ {[%clk 0:00:04]} 70. Kg7 {[%clk 0:00:08]}  Nh5+ {[%clk 0:00:04]} 71. Kg8 {[%clk 0:00:05]}  Ke7 {[%clk 0:00:03]} 72. Ng4 {[%clk 0:00:05]}  Nf4 {[%clk 0:00:03]} 73. h7 {[%clk 0:00:05]}  Ng6 {[%clk 0:00:00]} 74. Kg7 {[%clk 0:00:05]} 1-0


[Site "https://www.chess.com"]

[Event "Titled Tuesday Blitz June 20 Late 2023"]
[White "Nakamura, Hikaru"]
[Black "Holt, Conrad"]
[WhiteFideId "2016192"]
[BlackFideId "2034387"]
[WhiteElo "2874"]
[BlackElo "2592"]
[Result "1-0"]
[Round "9"]
[TimeControl "180+2"]
[Date "2023.06.20"]
[WhiteClock "0:00:04"]
[BlackClock "0:00:00"]
[Board "8"]

1. Nf3 {[%clk 0:02:53]}  d5 {[%clk 0:03:00]} 2. e3 {[%clk 0:02:53]}  Bg4 {[%clk 0:02:59]} 3. c4 {[%clk 0:02:53]}  c6 {[%clk 0:02:59]} 4. Qb3 {[%clk 0:02:52]}  Qc7 {[%clk 0:02:58]} 5. cxd5 {[%clk 0:02:52]}  cxd5 {[%clk 0:02:58]} 6. Nc3 {[%clk 0:02:52]}  Bxf3 {[%clk 0:02:57]} 7. gxf3 {[%clk 0:02:43]}  e6 {[%clk 0:02:57]} 8. d4 {[%clk 0:02:43]}  Nc6 {[%clk 0:02:57]} 9. Bd2 {[%clk 0:02:43]}  Nf6 {[%clk 0:02:54]} 10. O-O-O {[%clk 0:02:43]}  Bb4 {[%clk 0:02:50]} 11. Kb1 {[%clk 0:02:41]}  O-O {[%clk 0:02:46]} 12. Bd3 {[%clk 0:02:30]}  a5 {[%clk 0:02:45]} 13. Rc1 {[%clk 0:02:25]}  a4 {[%clk 0:02:39]} 14. Qd1 {[%clk 0:02:16]}  a3 {[%clk 0:02:37]} 15. b3 {[%clk 0:02:13]}  Qa5 {[%clk 0:02:36]} 16. Rc2 {[%clk 0:02:12]}  Rfc8 {[%clk 0:02:33]} 17. Qe2 {[%clk 0:01:49]}  e5 {[%clk 0:02:20]} 18. dxe5 {[%clk 0:01:49]}  Nxe5 {[%clk 0:02:20]} 19. Rhc1 {[%clk 0:01:49]}  Rd8 {[%clk 0:02:11]} 20. f4 {[%clk 0:01:39]}  Nc6 {[%clk 0:02:06]} 21. Nb5 {[%clk 0:01:28]}  Ne4 {[%clk 0:02:05]} 22. Bxb4 {[%clk 0:00:51]}  Nxb4 {[%clk 0:01:50]} 23. Rc7 {[%clk 0:00:52]}  Nxd3 {[%clk 0:01:43]} 24. Qxd3 {[%clk 0:00:53]}  Nxf2 {[%clk 0:01:42]} 25. Qf5 {[%clk 0:00:52]}  Rf8 {[%clk 0:01:35]} 26. Nd4 {[%clk 0:00:23]}  Qd2 {[%clk 0:01:26]} 27. Qc2 {[%clk 0:00:23]}  Qxe3 {[%clk 0:01:14]} 28. Nf5 {[%clk 0:00:23]}  Qe4 {[%clk 0:01:13]} 29. Re7 {[%clk 0:00:16]}  Qxc2+ {[%clk 0:00:45]} 30. Rxc2 {[%clk 0:00:17]}  Nd3 {[%clk 0:00:44]} 31. Rcc7 {[%clk 0:00:17]}  Rac8 {[%clk 0:00:26]} 32. Nd6 {[%clk 0:00:13]}  Rxc7 {[%clk 0:00:24]} 33. Rxc7 {[%clk 0:00:14]}  Nxf4 {[%clk 0:00:20]} 34. Rxb7 {[%clk 0:00:15]}  f5 {[%clk 0:00:17]} 35. b4 {[%clk 0:00:15]}  Nd3 {[%clk 0:00:12]} 36. Kc2 {[%clk 0:00:14]}  Ne5 {[%clk 0:00:10]} 37. Rb5 {[%clk 0:00:11]}  f4 {[%clk 0:00:10]} 38. Rxd5 {[%clk 0:00:06]}  f3 {[%clk 0:00:09]} 39. Ne4 {[%clk 0:00:06]}  f2 {[%clk 0:00:07]} 40. Ng3 {[%clk 0:00:07]}  Ng4 {[%clk 0:00:04]} 41. Nf1 {[%clk 0:00:07]}  Re8 {[%clk 0:00:04]} 42. Rd1 {[%clk 0:00:04]}  Re1 {[%clk 0:00:04]} 43. Kd2 {[%clk 0:00:04]}  Re4 {[%clk 0:00:04]} 44. Rb1 {[%clk 0:00:04]}  Ne5 {[%clk 0:00:04]} 45. b5 {[%clk 0:00:04]}  Re1 {[%clk 0:00:03]} 46. Kc2 {[%clk 0:00:04]}  Nc4 {[%clk 0:00:02]} 47. Ng3 {[%clk 0:00:04]}  Kf7 {[%clk 0:00:02]} 48. Rb4 {[%clk 0:00:04]}  Rc1+ {[%clk 0:00:00]} 49. Kxc1 {[%clk 0:00:04]} 1-0


[Site "https://www.chess.com"]